bitfinex-derivatives/quotes_SOLF0:USTF0_20250808
["timestamp","ask_amount","ask_price","bid_price","bid_amount"]
[1754684078881,12.51906596,177.47,177.46,146.23652401]
[1754684079482,6.24179613,177.47,177.46,146.23652401]
[1754684080178,12.51842144,177.47,177.46,146.23652401]
[1754684080383,12.51842144,177.47,177.46,151.87062401]
[1754684082788,15.50842144,177.47,177.46,151.87062401]
[1754684082989,15.50842144,177.47,177.46,146.23652401]
[1754684083193,15.51020357,177.47,177.46,146.23652401]
[1754684083390,9.23179613,177.47,177.46,146.23652401]
[1754684083894,9.23179613,177.47,177.46,143.19652401]
[1754684084289,9.23179613,177.47,177.46,146.15652401]
[1754684085889,14.86559613,177.47,177.46,143.19652401]
[1754684087992,9.23179613,177.47,177.46,146.15652401]
[1754684089596,15.50904336,177.47,177.46,146.15652401]
[1754684090094,15.50904336,177.47,177.46,151.79062401]
[1754684090498,9.23179613,177.47,177.46,151.79062401]
[1754684090696,15.50984777,177.47,177.46,151.79062401]
[1754684090901,9.23179613,177.47,177.46,146.15652401]
[1754684093595,12.52119169,177.47,177.46,146.15652401]
[1754684093996,12.52119169,177.47,177.46,151.79062401]
[1754684094597,0.04013946,177.48,177.47,5.6338]
[1754684094795,12.55546597,177.48,177.47,2.96]
[1754684094998,9.426629,177.5,177.47,2.96]
[1754684095205,12.416629,177.5,177.49,6.93652401]
[1754684095505,9.426629,177.51,177.5,2.96]
[1754684095699,12.416629,177.51,177.5,6.93652401]
[1754684095900,2.99,177.55,177.51,2.96]
[1754684096195,2.99,177.55,177.54,3.97652401]
[1754684096402,2.99,177.55,177.54,143.07652401]
[1754684097010,8.6212,177.55,177.54,143.07652401]
[1754684097806,2.99,177.55,177.54,146.03652401]
[1754684098508,2.99,177.55,177.54,143.07652401]
[1754684099907,2.99,177.58,177.55,2.96]
[1754684100206,84.38412604,177.59,177.57,3.97652401]
[1754684100511,84.38412604,177.59,177.58,139.06]
[1754684100709,87.37412604,177.59,177.58,134.83749286]
[1754684101103,87.37412604,177.59,177.58,111.08349027]
[1754684101607,93.00412604,177.59,177.58,111.08349027]
[1754684102002,93.00412604,177.59,177.57,0.04167909]
[1754684102003,5.6303,177.58,177.57,0.04167909]
[1754684102202,8.6203,177.58,177.57,0.04167909]
[1754684104101,2.99,177.58,177.57,3.00167909]
[1754684105110,2.99,177.58,177.57,0.04167909]
[1754684105714,8.6203,177.58,177.57,0.04167909]
[1754684107913,2.99,177.58,177.57,7.0582031]
[1754684108808,8.6203,177.58,177.57,3.08167909]
[1754684109007,8.6203,177.58,177.57,7.0582031]
[1754684109504,8.7903,177.58,177.57,4.0182031]
[1754684110411,84.38412604,177.59,177.57,4.0182031]
[1754684110613,87.54412604,177.59,177.58,3.04]
[1754684110810,84.38412604,177.59,177.57,4.0182031]
[1754684111011,3.16,177.58,177.57,4.0182031]
[1754684111313,84.38412604,177.59,177.57,4.0182031]
[1754684111508,3.16,177.6,177.57,4.0182031]
[1754684111815,3.16,177.6,177.59,7.01652401]
[1754684112015,3.16,177.62,177.59,9.60652401]
[1754684112215,3.16,177.62,177.61,7.01652401]
[1754684112416,16.55447315,177.69,177.61,3.97652401]
[1754684112714,3.16,177.64,177.63,3.97652401]
[1754684113111,8.7884,177.64,177.63,3.97652401]
[1754684113617,3.16,177.64,177.63,3.97652401]
[1754684113810,3.16,177.64,177.63,7.01652401]
[1754684114114,3.16,177.64,177.63,3.97652401]
[1754684114706,3.16,177.64,177.63,7.01652401]
[1754684115310,3.16,177.64,177.63,3.04]
[1754684115509,3.16,177.64,177.63,7.01652401]
[1754684116611,3.16,177.65,177.62,0.03601776]
[1754684117114,5.6286,177.64,177.62,0.03601776]
[1754684117417,3.16,177.63,177.62,0.03601776]
[1754684118417,8.7887,177.63,177.62,0.03601776]
[1754684118817,3.16,177.63,177.62,0.03601776]
[1754684120316,8.7887,177.63,177.62,0.03601776]
[1754684120519,5.6287,177.63,177.62,0.03601776]
[1754684120817,8.7887,177.63,177.62,0.03601776]
[1754684124022,18.17154084,177.63,177.62,0.03601776]
[1754684124323,3.16,177.57,177.56,3.04]
[1754684124518,7.84716053,177.57,177.56,3.04]
[1754684125121,13.47776053,177.57,177.56,3.04]
[1754684125315,7.84716053,177.57,177.56,3.04]
[1754684126920,4.68716053,177.57,177.56,3.04]
[1754684127122,4.68716053,177.57,177.56,12.64742401]
[1754684127322,7.89023579,177.58,177.57,3.04]
[1754684127512,4.73023579,177.58,177.57,3.04]
[1754684128218,7.89023579,177.58,177.57,3.04]
[1754684129314,4.73023579,177.58,177.57,8.6706]
[1754684129822,0.04307526,177.58,177.57,8.6706]
[1754684130222,7.89023579,177.58,177.57,8.6706]
[1754684130425,7.89023579,177.58,177.57,3.04]
[1754684131025,3.20307526,177.58,177.57,3.04]
[1754684131525,3.20307526,177.58,177.57,8.6706]
[1754684134127,3.20307526,177.58,177.57,3.04]
[1754684134721,3.20307526,177.58,177.55,138.86]
[1754684134722,3.16,177.57,177.55,141.9]
[1754684134922,7.86381306,177.56,177.55,138.86]
[1754684135123,3.16,177.56,177.55,138.86]
[1754684136118,9.41034802,177.56,177.55,138.86]
[1754684136321,8.7909,177.56,177.55,138.86]
[1754684136521,3.16,177.56,177.52,145.85652401]
[1754684136726,7.90649778,177.53,177.52,145.85652401]
[1754684137027,3.2,177.53,177.52,138.84]
[1754684137622,3.2,177.53,177.52,142.01]
[1754684137820,9.47533037,177.53,177.52,142.01]
[1754684138022,3.2,177.53,177.52,142.01]
[1754684138226,9.47533037,177.53,177.52,142.01]
[1754684138426,9.47533037,177.53,177.52,138.84]
[1754684138625,3.2,177.53,177.52,138.84]
[1754684139032,9.47533037,177.53,177.52,138.84]
[1754684140135,15.10723037,177.53,177.52,138.84]
[1754684140337,8.8319,177.53,177.52,138.84]
[1754684141443,3.2,177.5,177.49,138.82]
[1754684141635,9.48013784,177.5,177.49,138.82]
[1754684141836,9.48013784,177.5,177.49,141.99]
[1754684142432,6.31926429,177.51,177.49,141.99]
[1754684142637,9.51926429,177.51,177.5,3.17]
[1754684143942,15.15176429,177.51,177.5,3.17]
[1754684145038,15.15176429,177.51,177.49,138.82]
[1754684145253,8.8328,177.5,177.49,138.82]
[1754684145444,3.2,177.5,177.49,138.82]
[1754684146547,3.2,177.5,177.49,141.99]
[1754684148749,3.2,177.5,177.49,138.82]
[1754684149746,8.8328,177.5,177.49,138.82]
[1754684150252,3.2,177.5,177.49,138.82]
[1754684150443,3.2,177.5,177.49,141.99]
[1754684151645,3.2,177.5,177.49,138.82]
[1754684152546,8.8328,177.5,177.49,138.82]
[1754684152751,3.2,177.49,177.47,15.08]
[1754684152946,7.90010957,177.49,177.48,138.82]
[1754684153257,3.2,177.49,177.48,138.82]
[1754684153449,7.89911897,177.49,177.48,141.99]
[1754684154445,7.89911897,177.49,177.48,138.82]
[1754684154648,13.53231897,177.49,177.48,138.82]
[1754684155354,7.89911897,177.49,177.48,138.82]
[1754684156051,7.89911897,177.49,177.48,141.99]
[1754684156750,13.53231897,177.49,177.48,138.82]
[1754684158451,13.53231897,177.49,177.48,141.99]
[1754684159357,7.89911897,177.49,177.48,141.99]
[1754684160456,0.03912645,177.51,177.49,3.17]
[1754684160457,4.73824542,177.51,177.49,3.17]
[1754684160658,0.03912645,177.51,177.5,145.94652401]
[1754684160852,0.03912645,177.51,177.5,151.57932401]
[1754684161052,4.69911897,177.53,177.51,3.17]
[1754684161250,4.69911897,177.53,177.52,145.94652401]
[1754684161760,4.69911897,177.54,177.52,151.57842401]
[1754684161950,4.69911897,177.54,177.53,7.14652401]
[1754684162347,8.8313,177.55,177.53,7.14652401]
[1754684162653,5.6313,177.55,177.54,138.78]
[1754684162954,11.91143784,177.55,177.54,141.95]
[1754684163150,8.8313,177.55,177.54,141.95]
[1754684163356,3.2,177.55,177.54,141.95]
[1754684164057,3.2,177.54,177.51,0.03587528]
[1754684164260,9.48013784,177.52,177.51,141.98587528]
[1754684164647,9.48013784,177.52,177.51,145.96239929]
[1754684164853,10.32603185,177.52,177.51,145.96239929]
[1754684165055,7.90563877,177.52,177.51,145.96239929]
[1754684165258,5.62112504,177.52,177.51,145.96239929]
[1754684166551,11.25332504,177.52,177.51,145.96239929]
[1754684166754,11.25332504,177.52,177.51,3.20587528]
[1754684166955,17.53346288,177.52,177.51,138.79587528]
[1754684167462,17.53346288,177.52,177.51,142.02587528]
[1754684169359,17.53346288,177.52,177.51,138.79587528]
[1754684169758,11.25332504,177.52,177.51,138.79587528]
[1754684173258,17.53587937,177.52,177.51,142.02587528]
[1754684173461,11.25332504,177.52,177.51,142.02587528]
[1754684173663,17.53681458,177.52,177.51,142.02587528]
[1754684173964,11.90461458,177.52,177.51,142.02587528]
[1754684174357,5.62112504,177.52,177.51,142.02587528]
[1754684175265,5.64112504,177.52,177.51,142.02587528]
[1754684176055,11.27332504,177.52,177.51,138.79587528]
[1754684176663,11.27332504,177.52,177.51,142.02587528]
[1754684177061,5.64112504,177.52,177.51,142.02587528]
[1754684177363,2.42748061,177.52,177.51,142.02587528]
[1754684177559,9.42020676,177.55,177.52,3.23]
[1754684177760,9.42020676,177.55,177.51,138.79587528]
[1754684177761,12.64020676,177.56,177.54,3.97652401]
[1754684177957,9.42020676,177.57,177.56,3.23]
[1754684178163,9.42020676,177.58,177.57,3.23]
[1754684178364,9.42020676,177.59,177.58,3.23]
[1754684178570,3.22,177.59,177.5,253.26]
[1754684178867,4.7198865,177.52,177.51,138.72]
[1754684179068,3.22,177.55,177.51,138.72]
[1754684179268,3.22,177.55,177.53,0.04208404]
[1754684179471,3.22,177.55,177.54,138.72]
[1754684179861,9.42020676,177.6,177.54,148.32812401]
[1754684180062,3.22,177.59,177.58,3.97652401]
[1754684180271,3.22,177.59,177.58,142.69652401]
[1754684180466,93.71552464,177.61,177.58,142.69652401]
[1754684180659,12.64020676,177.61,177.6,4.53652401]
[1754684180970,3.22,177.64,177.62,0.56]
[1754684181172,9.42020676,177.65,177.63,138.72]
[1754684181366,9.42020676,177.65,177.64,138.72]
[1754684181868,9.42020676,177.65,177.63,138.7]
[1754684182068,3.22,177.64,177.63,138.7]
[1754684183570,3.22,177.64,177.63,139.26]
[1754684183963,3.22,177.64,177.63,144.8887]
[1754684184165,3.22,177.64,177.63,144.3287]
[1754684185468,5.6273,177.68,177.64,5.6281]
[1754684185664,3.22,177.67,177.65,3.97652401]
[1754684185864,3.22,177.67,177.66,138.68]
[1754684186865,8.8474,177.67,177.66,138.68]
[1754684189362,3.22,177.67,177.66,138.68]
[1754684189575,5.57798756,177.67,177.66,138.68]
[1754684190073,11.20538756,177.67,177.66,138.68]
[1754684191468,8.8478,177.66,177.65,0.04207363]
[1754684191776,11.20578756,177.66,177.65,0.04207363]
[1754684192477,5.57798756,177.66,177.65,0.04207363]
[1754684193276,11.20578756,177.66,177.65,0.04207363]
[1754684194068,5.57798756,177.66,177.65,0.04207363]
[1754684194975,11.20578756,177.66,177.65,0.04207363]
[1754684197173,8.8684,177.64,177.63,138.64]
[1754684197372,11.22638756,177.64,177.63,138.64]
[1754684199981,5.59798756,177.64,177.63,138.64]
[1754684200774,5.59798756,177.64,177.63,139.2]
[1754684201281,5.59744291,177.64,177.63,138.64]
[1754684202680,5.59744291,177.64,177.63,144.2687]
[1754684204087,2.35744291,177.64,177.63,144.8287]
[1754684207789,2.35744291,177.64,177.63,139.2]
[1754684207992,11.22584291,177.64,177.63,138.64]
[1754684208290,3.24,177.63,177.6,3.97652401]
[1754684208489,11.22644291,177.62,177.61,138.58]
[1754684208988,5.59744291,177.62,177.61,138.58]
[1754684210189,5.59744291,177.62,177.61,144.2093]
[1754684210391,5.59744291,177.62,177.61,144.7693]
[1754684211593,2.35744291,177.62,177.61,144.7693]
[1754684212293,2.35744291,177.62,177.52,4.53652401]
[1754684212294,3.24,177.56,177.52,4.53652401]
[1754684212587,2.35744291,177.55,177.54,0.56]
[1754684212793,5.59744291,177.55,177.54,0.56]
[1754684212993,5.59744291,177.55,177.54,6.1916]
[1754684213202,2.35744291,177.55,177.54,138.56]
[1754684213386,2.35744291,177.55,177.54,143.09652401]
[1754684213589,2.35744291,177.55,177.54,148.72812401]
[1754684213888,5.59744291,177.55,177.54,148.72812401]
[1754684214793,5.59744291,177.55,177.54,148.16812401]
[1754684215700,5.59744291,177.55,177.54,148.72812401]
[1754684215996,5.59744291,177.55,177.54,148.16812401]
[1754684216385,5.59744291,177.55,177.54,160.13812401]
[1754684218198,5.59744291,177.55,177.54,21.57812401]
[1754684218499,5.59744291,177.55,177.54,160.15812401]
[1754684222100,5.59744291,177.55,177.54,150.55]
[1754684223499,11.22864291,177.55,177.54,150.55]
[1754684223806,20.64884967,177.55,177.54,148.12007363]
[1754684224001,5.59744291,177.55,177.54,148.12007363]
[1754684226896,11.61184044,177.55,177.54,154.31167363]
[1754684227104,0.04140083,177.56,177.54,148.68007363]
[1754684227302,0.04140083,177.56,177.55,4.53652401]
[1754684227602,3.01140083,177.56,177.55,3.97652401]
[1754684228204,3.01140083,177.56,177.55,9.60772401]
[1754684228407,3.01140083,177.56,177.55,148.18772401]
[1754684229005,3.01140083,177.56,177.55,142.55652401]
[1754684230700,3.01140083,177.56,177.55,148.18772401]
[1754684231412,3.01140083,177.56,177.55,138.58]
[1754684232409,2.97,177.55,177.54,19.70809764]
[1754684232612,2.97,177.55,177.54,9.54007363]
[1754684232824,9.25439753,177.55,177.54,148.12007363]
[1754684233212,0.04140083,177.56,177.55,0.56]
[1754684233709,0.04140083,177.56,177.54,152.09659764]
[1754684233710,3.01140083,177.56,177.54,13.51659764]
[1754684233903,3.01140083,177.56,177.55,138.58]
[1754684233904,9.29579836,177.56,177.55,138.58]
[1754684234109,9.29677077,177.56,177.55,138.58]
[1754684234499,14.92767077,177.56,177.55,138.58]
[1754684234704,9.29677077,177.56,177.55,138.58]
[1754684235409,0.04140083,177.56,177.55,139.14]
[1754684235811,3.01140083,177.56,177.55,139.14]
[1754684236206,3.01140083,177.56,177.55,138.58]
[1754684236912,9.2953134,177.56,177.55,138.58]
[1754684238111,14.9262134,177.56,177.55,138.58]
[1754684238509,11.9562134,177.56,177.54,9.54007363]
[1754684238708,2.97,177.55,177.54,9.54007363]
[1754684239011,2.97,177.54,177.47,3.04]
[1754684239206,6.28117015,177.48,177.47,3.04]
[1754684239403,6.28117015,177.49,177.47,138.56]
[1754684239606,6.28117015,177.5,177.48,3.97652401]
[1754684239802,6.28117015,177.5,177.49,141.6]
[1754684240015,11.95629295,177.51,177.49,141.6]
[1754684240212,11.95629295,177.51,177.5,3.04]
[1754684240810,6.32369295,177.51,177.5,3.04]
[1754684243314,9.29369295,177.51,177.5,3.04]
[1754684243518,6.32369295,177.51,177.5,3.04]
[1754684244118,9.29369295,177.51,177.5,3.04]
[1754684244417,6.32369295,177.51,177.5,3.04]
[1754684245617,9.29369295,177.51,177.5,3.04]
[1754684245815,6.32369295,177.51,177.5,3.04]
[1754684248918,6.32369295,177.51,177.5,141.64]
[1754684249418,6.32369295,177.51,177.5,8.6728]
[1754684249619,6.32369295,177.51,177.5,147.2728]
[1754684250413,6.32369295,177.51,177.5,141.64]
[1754684251315,6.32369295,177.51,177.5,147.2728]
[1754684251716,6.32369295,177.51,177.5,8.6728]
[1754684251921,6.32369295,177.51,177.5,147.2728]
[1754684253223,3.0125228,177.51,177.5,141.64]
[1754684253420,3.0125228,177.51,177.5,3.04]
[1754684253617,3.0125228,177.51,177.5,141.64]
[1754684253812,0.0425228,177.51,177.5,141.64]
[1754684254524,0.0425228,177.51,177.5,147.2728]
[1754684254723,0.0425228,177.51,177.49,3.97652401]
[1754684254921,6.27748609,177.5,177.49,7.01652401]
[1754684255122,6.27748609,177.5,177.49,145.59652401]
[1754684255427,6.27748609,177.5,177.49,151.22952401]
[1754684256321,2.95,177.5,177.49,151.22952401]
[1754684256523,9.46427803,177.51,177.49,145.59652401]
[1754684256720,6.28011457,177.5,177.49,142.55652401]
[1754684257225,0.0425228,177.51,177.49,145.70652401]
[1754684257419,0.0425228,177.51,177.5,3.15]
[1754684257823,0.0425228,177.51,177.5,141.73]
[1754684258222,0.0425228,177.51,177.5,147.3628]
[1754684258925,0.0425228,177.51,177.5,141.73]
[1754684259822,0.0425228,177.51,177.5,147.3628]
[1754684260630,6.32519649,177.51,177.5,147.3628]
[1754684261322,0.0425228,177.51,177.5,151.33932401]
[1754684261530,6.32519649,177.51,177.5,12.75932401]
[1754684261923,6.32519649,177.51,177.5,151.33932401]
[1754684262128,0.0425228,177.51,177.5,151.33932401]
[1754684262320,6.32571562,177.51,177.5,151.33932401]
[1754684262720,0.0425228,177.51,177.5,151.33932401]
[1754684264527,6.32571562,177.51,177.5,151.33932401]
[1754684264724,6.32571562,177.51,177.5,151.31932401]
[1754684267725,2.95,177.57,177.54,3.15]
[1754684267726,9.42175523,177.55,177.54,3.15]
[1754684267924,9.42175523,177.55,177.54,141.71]
[1754684268928,9.42175523,177.55,177.54,147.3416]
[1754684269233,12.37175523,177.55,177.54,3.15]
[1754684269430,12.37175523,177.55,177.54,141.71]
[1754684271134,12.37175523,177.55,177.54,3.15]
[1754684271333,12.37175523,177.55,177.54,141.71]
[1754684273031,12.37175523,177.55,177.54,3.15]
[1754684273230,12.37175523,177.55,177.54,141.69]
[1754684273631,9.42175523,177.55,177.54,147.3216]
[1754684273837,9.60572401,177.62,177.55,3.15]
[1754684273838,2.95,177.61,177.55,3.15]
[1754684274036,2.95,177.61,177.58,3.97652401]
[1754684274241,18.20714914,177.62,177.59,141.69]
[1754684274436,2.95,177.6,177.59,137.46736226]
[1754684275832,8.5797,177.6,177.59,137.46736226]
[1754684276544,2.95,177.6,177.59,140.61736226]
[1754684276843,2.95,177.6,177.59,137.46736226]
[1754684277244,5.6297,177.6,177.59,137.46736226]
[1754684277544,8.5797,177.6,177.59,137.46736226]
[1754684280346,72.74320383,177.65,177.59,144.59388627]
[1754684280548,2.95,177.64,177.61,3.97652401]
[1754684280751,72.74320383,177.65,177.62,141.65]
[1754684280752,2.95,177.63,177.62,141.65]
[1754684280950,8.5788,177.63,177.62,141.65]
[1754684281145,2.95,177.63,177.62,141.65]
[1754684281857,5.6285,177.64,177.63,3.15]
[1754684281858,2.95,177.64,177.63,3.15]
[1754684282043,2.95,177.64,177.63,7.12652401]
[1754684283157,2.95,177.64,177.62,138.5]
[1754684284046,5.6287,177.63,177.62,138.5]
[1754684284245,8.5787,177.63,177.62,138.5]
[1754684284442,8.5787,177.63,177.62,141.65]
[1754684284856,8.5787,177.63,177.62,138.5]
[1754684285548,8.579,177.62,177.61,0.04014767]
[1754684285754,8.579,177.62,177.61,138.52014767]
[1754684287746,8.579,177.62,177.61,141.79014767]
[1754684288154,5.629,177.62,177.61,141.79014767]
[1754684288343,8.649,177.62,177.61,141.79014767]
[1754684289051,60.16525469,177.65,177.62,3.27]
[1754684289355,3.02,177.63,177.62,3.27]
[1754684289851,8.6487,177.63,177.62,3.27]
[1754684290048,8.6487,177.63,177.62,141.73]
[1754684292757,8.6487,177.63,177.62,138.46]
[1754684293851,18.06133759,177.63,177.62,138.46]
[1754684294359,18.06133759,177.63,177.62,141.73]
[1754684295154,8.6487,177.63,177.62,141.73]
[1754684295457,18.06305242,177.63,177.62,141.73]
[1754684295854,8.649,177.62,177.61,4.767e-05]
[1754684296050,3.02,177.61,177.55,3.27]
[1754684296254,3.02,177.61,177.55,138.68]
[1754684296255,3.02,177.56,177.55,138.68]
[1754684296456,8.6509,177.56,177.55,138.68]
[1754684296954,8.6509,177.56,177.55,141.95]
[1754684302164,18.06728984,177.56,177.55,141.95]
[1754684302354,8.6509,177.56,177.55,141.95]
[1754684307165,5.6309,177.56,177.55,141.95]
[1754684307371,8.6509,177.56,177.55,141.95]
[1754684308663,8.6509,177.56,177.55,138.68]
[1754684310375,3.02,177.55,177.52,138.48]
[1754684310572,12.43937476,177.53,177.52,141.75]
[1754684310873,18.07127476,177.53,177.52,141.75]
[1754684311075,5.6319,177.53,177.52,141.75]
[1754684312068,8.6519,177.53,177.52,141.75]
[1754684312877,18.07127476,177.53,177.52,141.75]
[1754684313577,9.41937476,177.53,177.52,138.48]
[1754684313875,15.05127476,177.53,177.52,141.75]
[1754684314070,18.07127476,177.53,177.52,141.75]
[1754684314776,5.6319,177.53,177.52,141.75]
[1754684315575,8.6519,177.53,177.52,141.75]
[1754684317475,18.07127476,177.53,177.52,138.48]
[1754684317671,18.07127476,177.53,177.52,141.46]
[1754684317868,18.07127476,177.53,177.52,138.48]
[1754684318270,22.04779877,177.53,177.52,138.48]
[1754684318476,13.39589877,177.53,177.46,0.98017125]
[1754684318673,13.39179294,177.49,177.47,2.98]
[1754684318872,13.39179294,177.48,177.47,138.5]
[1754684319073,9.61002401,177.48,177.47,107.9518]
[1754684319273,12.63002401,177.48,177.47,99.2077]
[1754684319570,12.63002401,177.48,177.47,72.9918]
[1754684319764,12.63002401,177.48,177.37,8.97652401]
[1754684319765,5.6349,177.44,177.37,8.97652401]
[1754684319974,4.70277231,177.43,177.38,141.48]
[1754684320171,4.70277231,177.43,177.39,2.98]
[1754684320567,3.97652401,177.48,177.38,139.48091721]
[1754684320568,4.74590594,177.42,177.38,0.98091721]
[1754684320771,3.02,177.41,177.4,2.98]
[1754684320972,4.70277231,177.41,177.4,2.98]
[1754684321574,7.76534701,177.42,177.4,2.98]
[1754684321771,4.70277231,177.41,177.39,2.98]
[1754684321976,4.70277231,177.41,177.39,138.56]
[1754684322175,7.76534701,177.42,177.4,2.98]
[1754684322576,0.0425747,177.42,177.4,2.98]
[1754684322978,4.74534701,177.42,177.4,2.98]
[1754684323172,0.0425747,177.42,177.4,2.98]
[1754684324987,0.0425747,177.42,177.41,8.6157]
[1754684326181,0.0425747,177.42,177.41,147.1957]
[1754684326375,0.0425747,177.42,177.41,5.6357]
[1754684326591,0.0425747,177.42,177.41,141.54]
[1754684326978,0.0425747,177.42,177.41,5.6357]
[1754684327282,3.02,177.41,177.4,141.56]
[1754684328591,3.0625747,177.42,177.41,2.98]
[1754684329895,3.0625747,177.42,177.4,138.58]
[1754684330094,4.67851305,177.41,177.4,141.56]
[1754684330295,7.69851305,177.41,177.4,138.58]
[1754684330499,3.02,177.41,177.4,141.56]
[1754684330991,7.69812509,177.41,177.4,141.56]
[1754684331392,7.69812509,177.41,177.4,2.98]
[1754684333900,4.67812509,177.41,177.4,2.98]
[1754684334690,7.69812509,177.41,177.4,2.98]
[1754684336107,3.02,177.4,177.39,138.58]
[1754684336304,7.69719961,177.4,177.39,141.56]
[1754684336708,7.69719961,177.4,177.39,138.58]
[1754684336900,13.33319961,177.4,177.39,138.58]
[1754684337304,8.656,177.4,177.39,138.58]
[1754684338301,8.656,177.4,177.39,141.56]
[1754684338800,3.02,177.4,177.39,141.56]
[1754684339100,7.70087698,177.4,177.39,141.56]
[1754684339408,3.02,177.4,177.39,141.56]
[1754684339596,3.02,177.4,177.39,138.58]
[1754684339802,8.656,177.4,177.39,138.58]
[1754684340203,8.6566,177.38,177.37,8.82]
[1754684340403,18.87620118,177.38,177.37,8.82]
[1754684341303,12.63312401,177.38,177.37,8.82]
[1754684341698,7.70226168,177.38,177.37,11.8]
[1754684341907,3.02,177.38,177.37,11.8]
[1754684342311,8.6566,177.38,177.37,11.8]
[1754684342701,8.6566,177.38,177.37,8.82]
[1754684345212,12.63312401,177.38,177.37,8.82]
[1754684346711,5.6373,177.36,177.35,2.98]
[1754684346912,13.33811817,177.36,177.35,2.98]
[1754684347805,3.02,177.34,177.33,3.15]
[1754684348803,8.6579,177.34,177.33,3.15]
[1754684349608,5.639,177.31,177.25,235.0]
[1754684349815,8.659,177.31,177.26,142.59652401]
[1754684350016,3.02,177.31,177.28,5.6398]
[1754684350215,3.02,177.32,177.28,3.15]
[1754684350410,4.68081817,177.32,177.29,3.15]
[1754684350718,10.21960118,177.34,177.29,11.97]
[1754684350719,8.69875344,177.3,177.29,11.97]
[1754684351213,0.03955344,177.3,177.29,11.97]
[1754684351915,3.05955344,177.3,177.29,11.97]
[1754684352416,8.69875344,177.3,177.29,11.97]
[1754684353109,0.03955344,177.3,177.29,11.97]
[1754684354412,5.67875344,177.3,177.29,11.97]
[1754684354611,8.69875344,177.3,177.29,11.97]
[1754684355418,8.69875344,177.3,177.29,8.82]
[1754684356912,8.69875344,177.3,177.29,11.97]
[1754684359822,3.05955344,177.3,177.29,11.97]
[1754684360210,7.74037161,177.3,177.29,11.97]
[1754684360419,13.37957161,177.3,177.29,11.97]
[1754684361316,8.69875344,177.3,177.29,11.97]
[1754684363319,8.69875344,177.3,177.29,8.82]
[1754684363622,14.94183061,177.3,177.29,8.82]
[1754684363819,8.69875344,177.3,177.29,8.82]
[1754684364811,18.11402237,177.3,177.29,8.82]
[1754684365012,8.69875344,177.3,177.29,4.59016088]
[1754684365618,18.09385896,177.3,177.29,4.59016088]
[1754684367222,3.02,177.24,177.23,3.15]
[1754684367422,6.26041294,177.25,177.23,3.15]
[1754684367730,9.28041294,177.25,177.23,3.15]
[1754684368221,6.26041294,177.25,177.23,3.15]
[1754684368417,0.03916312,177.26,177.23,12.76772401]
[1754684368418,4.69422719,177.24,177.23,12.76772401]
[1754684368622,4.73339031,177.26,177.24,3.15]
[1754684368821,4.73339031,177.26,177.25,7.12652401]
[1754684369128,4.73339031,177.26,177.25,12.76732401]
[1754684369320,0.03916312,177.26,177.25,3.15]
[1754684369623,4.73398842,177.26,177.25,3.15]
[1754684370322,4.73398842,177.26,177.25,7.12652401]
[1754684370523,4.73398842,177.26,177.25,12.76732401]
[1754684370720,4.73398842,177.26,177.25,7.12652401]
[1754684371523,4.73398842,177.26,177.25,18.40732401]
[1754684371826,6.26041294,177.3,177.26,3.15]
[1754684372022,6.26041294,177.31,177.29,3.15]
[1754684372422,3.02,177.3,177.29,3.15]
[1754684372929,6.26041294,177.3,177.27,3.15]
[1754684373128,5.6395,177.29,177.27,3.15]
[1754684373330,3.02,177.28,177.27,3.15]
[1754684374630,9.28041294,177.29,177.27,3.15]
[1754684374834,6.26041294,177.29,177.28,3.15]
[1754684375131,9.28041294,177.29,177.28,3.15]
[1754684375329,3.02,177.29,177.28,3.15]